[Event "Early-Titled-Tuesday-Blitz-July-09-2024"]
[Site "Chess.com"]
[Date "2024.07.09"]
[Round "1"]
[White "dealshark"]
[Black "juancruzarias"]
[Result "0-1"]
[WhiteElo "2377"]
[BlackElo "2690"]
[TimeControl "180+1"]
[EndTime "8:04:28 PDT"]
[Termination "juancruzarias won by checkmate"]

1. e4 {[%clk 0:03:00.3]} 1... c6 {[%clk 0:02:57.9]} 2. d4 {[%clk 0:03:00.3]}
2... d5 {[%clk 0:02:58.3]} 3. Nc3 {[%clk 0:03:00.8]} 3... dxe4 {[%clk
0:02:58.4]} 4. Nxe4 {[%clk 0:03:01.7]} 4... Nf6 {[%clk 0:02:58.9]} 5. Nxf6+
{[%clk 0:03:01.1]} 5... exf6 {[%clk 0:02:59.8]} 6. Bf4 {[%clk 0:02:59.2]} 6...
Bd6 {[%clk 0:02:58.2]} 7. Bxd6 {[%clk 0:02:59]} 7... Qxd6 {[%clk 0:02:59.1]} 8.
Nf3 {[%clk 0:02:54]} 8... Qb4+ {[%clk 0:02:57.4]} 9. Qd2 {[%clk 0:02:12.5]} 9...
Qxb2 {[%clk 0:02:56.5]} 10. Rc1 {[%clk 0:02:09.6]} 10... Qxa2 {[%clk 0:02:53.2]}
11. Bd3 {[%clk 0:02:08.9]} 11... O-O {[%clk 0:02:51.6]} 12. O-O {[%clk
0:02:09.3]} 12... Qd5 {[%clk 0:02:43.1]} 13. c4 {[%clk 0:02:08.8]} 13... Qd6
{[%clk 0:02:42.1]} 14. c5 {[%clk 0:01:58]} 14... Qc7 {[%clk 0:02:39.2]} 15. Qc2
{[%clk 0:01:48]} 15... h6 {[%clk 0:02:34.8]} 16. Qe2 {[%clk 0:01:38.6]} 16...
Be6 {[%clk 0:02:33.4]} 17. Qe4 {[%clk 0:01:37.8]} 17... f5 {[%clk 0:02:32.7]}
18. Qh4 {[%clk 0:01:36.1]} 18... Nd7 {[%clk 0:02:31.1]} 19. Rfe1 {[%clk
0:01:35.3]} 19... Nf6 {[%clk 0:02:29.9]} 20. Ne5 {[%clk 0:01:32.8]} 20... Rad8
{[%clk 0:02:28.5]} 21. Re3 {[%clk 0:01:30.8]} 21... Ng4 {[%clk 0:02:24.2]} 22.
Nxg4 {[%clk 0:01:14.2]} 22... fxg4 {[%clk 0:02:24.1]} 23. Rxe6 {[%clk
0:00:55.9]} 23... fxe6 {[%clk 0:02:23.8]} 24. Qxg4 {[%clk 0:00:56.4]} 24... Qf4
{[%clk 0:02:20]} 25. Qxe6+ {[%clk 0:00:53.9]} 25... Kh8 {[%clk 0:02:20.5]} 26.
Rf1 {[%clk 0:00:49.2]} 26... Qxd4 {[%clk 0:02:19.2]} 27. Bb1 {[%clk 0:00:40.6]}
27... Qxf2+ {[%clk 0:02:19]} 28. Rxf2 {[%clk 0:00:36.1]} 28... Rd1+ {[%clk
0:02:18.5]} 29. Rf1 {[%clk 0:00:36.4]} 29... Rdxf1# {[%clk 0:02:18.7]} 0-1

[Event "Early-Titled-Tuesday-Blitz-July-09-2024"]
[Site "Chess.com"]
[Date "2024.07.09"]
[Round "1"]
[White "DawidCzerw"]
[Black "nrvisakh"]
[Result "0-1"]
[WhiteElo "2507"]
[BlackElo "2938"]
[TimeControl "180+1"]
[EndTime "8:04:29 PDT"]
[Termination "nrvisakh won by resignation"]

1. e4 {[%clk 0:03:00.4]} 1... e6 {[%clk 0:02:59]} 2. d4 {[%clk 0:02:59.3]} 2...
d5 {[%clk 0:02:59.9]} 3. Nc3 {[%clk 0:02:56.5]} 3... Bb4 {[%clk 0:02:58.3]} 4.
e5 {[%clk 0:02:55.4]} 4... c5 {[%clk 0:02:58.5]} 5. a3 {[%clk 0:02:55.1]} 5...
Bxc3+ {[%clk 0:02:58.7]} 6. bxc3 {[%clk 0:02:56]} 6... Qc7 {[%clk 0:02:58.2]} 7.
Qg4 {[%clk 0:02:54.3]} 7... Ne7 {[%clk 0:02:58.4]} 8. Qxg7 {[%clk 0:02:52.8]}
8... Rg8 {[%clk 0:02:58.5]} 9. Qxh7 {[%clk 0:02:52.7]} 9... Nbc6 {[%clk
0:02:57.2]} 10. Ne2 {[%clk 0:02:47.4]} 10... cxd4 {[%clk 0:02:56.5]} 11. cxd4
{[%clk 0:02:47.2]} 11... Nxd4 {[%clk 0:02:56.8]} 12. Nxd4 {[%clk 0:02:36.4]}
12... Qc3+ {[%clk 0:02:56.6]} 13. Ke2 {[%clk 0:02:29.5]} 13... Qxa1 {[%clk
0:02:23.1]} 14. Be3 {[%clk 0:02:24.2]} 14... Bd7 {[%clk 0:02:19.6]} 15. f3
{[%clk 0:02:21.5]} 15... O-O-O {[%clk 0:01:50.7]} 16. Kf2 {[%clk 0:02:20.4]}
16... Nc6 {[%clk 0:01:45.2]} 17. Nxc6 {[%clk 0:01:51.7]} 17... Bxc6 {[%clk
0:01:46.1]} 18. Qxf7 {[%clk 0:01:51.1]} 18... Qxe5 {[%clk 0:01:42.2]} 19. f4
{[%clk 0:01:35.4]} 19... Qe4 {[%clk 0:01:35.8]} 20. c3 {[%clk 0:01:20.5]} 20...
d4 {[%clk 0:01:26.6]} 21. cxd4 {[%clk 0:01:18.3]} 21... Rxg2+ {[%clk 0:01:17.8]}
22. Bxg2 {[%clk 0:01:16.3]} 22... Qxg2+ {[%clk 0:01:18.7]} 23. Ke1 {[%clk
0:01:16.3]} 23... Qxh1+ {[%clk 0:01:18.7]} 0-1

[Event "Early-Titled-Tuesday-Blitz-July-09-2024"]
[Site "Chess.com"]
[Date "2024.07.09"]
[Round "1"]
[White "aa175"]
[Black "JordanLoyd2020"]
[Result "1-0"]
[WhiteElo "2941"]
[BlackElo "2509"]
[TimeControl "180+1"]
[EndTime "8:04:35 PDT"]
[Termination "aa175 won by resignation"]

1. d4 {[%clk 0:03:00.3]} 1... d5 {[%clk 0:02:59.9]} 2. Bf4 {[%clk 0:03:00.8]}
2... Nf6 {[%clk 0:02:54.7]} 3. e3 {[%clk 0:03:01.3]} 3... e6 {[%clk 0:02:55.3]}
4. Nf3 {[%clk 0:03:01.7]} 4... c5 {[%clk 0:02:55.8]} 5. Nbd2 {[%clk 0:03:02.4]}
5... Nc6 {[%clk 0:02:55.5]} 6. c3 {[%clk 0:03:03.1]} 6... cxd4 {[%clk
0:02:55.8]} 7. exd4 {[%clk 0:03:03.6]} 7... Nh5 {[%clk 0:02:55.5]} 8. Bg3 {[%clk
0:03:00.2]} 8... g6 {[%clk 0:02:43]} 9. Bh4 {[%clk 0:02:58]} 9... f6 {[%clk
0:02:40.1]} 10. Bb5 {[%clk 0:02:52.2]} 10... Bd6 {[%clk 0:02:37.6]} 11. O-O
{[%clk 0:02:52.4]} 11... O-O {[%clk 0:02:35.6]} 12. c4 {[%clk 0:02:52.4]} 12...
Ne7 {[%clk 0:02:24.6]} 13. Re1 {[%clk 0:02:48.9]} 13... Bc7 {[%clk 0:02:10]} 14.
cxd5 {[%clk 0:02:47.4]} 14... exd5 {[%clk 0:02:05.1]} 15. Rc1 {[%clk 0:02:44]}
15... Nf5 {[%clk 0:01:57.8]} 16. Bg3 {[%clk 0:02:42.4]} 16... Nhxg3 {[%clk
0:01:54]} 17. hxg3 {[%clk 0:02:43.3]} 17... a6 {[%clk 0:01:37.2]} 18. Bd3 {[%clk
0:02:38.7]} 18... Qd6 {[%clk 0:01:30.1]} 19. Qb3 {[%clk 0:02:33.5]} 19... b5
{[%clk 0:01:18.2]} 20. Ne4 {[%clk 0:02:26.1]} 20... Qd8 {[%clk 0:01:08.9]} 21.
Rxc7 {[%clk 0:02:21.5]} 21... Qxc7 {[%clk 0:01:03.6]} 22. Qxd5+ {[%clk
0:02:21.8]} 22... Be6 {[%clk 0:00:33.7]} 23. Qxe6+ {[%clk 0:02:21.9]} 23... Kg7
{[%clk 0:00:34.3]} 24. Nc5 {[%clk 0:02:20.2]} 24... Nxd4 {[%clk 0:00:17.9]} 25.
Qe7+ {[%clk 0:02:17]} 25... Rf7 {[%clk 0:00:14.1]} 26. Qxc7 {[%clk 0:02:16.5]}
26... Rxc7 {[%clk 0:00:14.8]} 27. Nxd4 {[%clk 0:02:17.4]} 27... Rxc5 {[%clk
0:00:15.3]} 28. Ne6+ {[%clk 0:02:17.7]} 1-0

[Event "Early-Titled-Tuesday-Blitz-July-09-2024"]
[Site "Chess.com"]
[Date "2024.07.09"]
[Round "1"]
[White "Ruprecht_der_Knecht"]
[Black "LunaTheTuna2013"]
[Result "1/2-1/2"]
[WhiteElo "2538"]
[BlackElo "1995"]
[TimeControl "180+1"]
[EndTime "8:04:43 PDT"]
[Termination "Game drawn by repetition"]

1. c4 {[%clk 0:02:58.1]} 1... Nf6 {[%clk 0:02:59.4]} 2. Nc3 {[%clk 0:02:57.6]}
2... e6 {[%clk 0:02:59]} 3. e3 {[%clk 0:02:53.6]} 3... d5 {[%clk 0:02:57.7]} 4.
Nf3 {[%clk 0:02:53.9]} 4... c5 {[%clk 0:02:56.9]} 5. b3 {[%clk 0:02:53.6]} 5...
Nc6 {[%clk 0:02:56.6]} 6. cxd5 {[%clk 0:02:49.8]} 6... exd5 {[%clk 0:02:56.4]}
7. d4 {[%clk 0:02:50.2]} 7... b6 {[%clk 0:02:54.3]} 8. Bb2 {[%clk 0:02:47.6]}
8... Bb7 {[%clk 0:02:53.1]} 9. Bb5 {[%clk 0:02:45.6]} 9... Bd6 {[%clk 0:02:52]}
10. Ne5 {[%clk 0:02:44.3]} 10... Qc7 {[%clk 0:02:47.7]} 11. f4 {[%clk
0:02:41.2]} 11... O-O {[%clk 0:02:45.4]} 12. O-O {[%clk 0:02:40.8]} 12... cxd4
{[%clk 0:02:42.8]} 13. exd4 {[%clk 0:02:37.5]} 13... a6 {[%clk 0:02:33.9]} 14.
Bxc6 {[%clk 0:02:25.3]} 14... Bxc6 {[%clk 0:02:34.8]} 15. Rc1 {[%clk 0:02:24.9]}
15... Qb7 {[%clk 0:02:33.8]} 16. Nxc6 {[%clk 0:02:19]} 16... Qxc6 {[%clk
0:02:31]} 17. Ne4 {[%clk 0:02:19.6]} 17... Qd7 {[%clk 0:02:24.8]} 18. Nxf6+
{[%clk 0:02:18.8]} 18... gxf6 {[%clk 0:02:24.3]} 19. Qd3 {[%clk 0:02:09.3]}
19... Qg4 {[%clk 0:02:20.3]} 20. h3 {[%clk 0:02:05.7]} 20... Qg6 {[%clk
0:02:18.9]} 21. f5 {[%clk 0:02:03.8]} 21... Qg5 {[%clk 0:02:15]} 22. Rc6 {[%clk
0:02:01.5]} 22... Bf4 {[%clk 0:02:07.4]} 23. Bc1 {[%clk 0:01:49.8]} 23... Bxc1
{[%clk 0:02:04.5]} 24. Rfxc1 {[%clk 0:01:49.9]} 24... Kh8 {[%clk 0:01:58.8]} 25.
Rf1 {[%clk 0:01:31.7]} 25... Rg8 {[%clk 0:01:57.4]} 26. Qf3 {[%clk 0:01:31.8]}
26... b5 {[%clk 0:01:50.6]} 27. Kh1 {[%clk 0:01:22.6]} 27... Qd2 {[%clk
0:01:40.8]} 28. Qf2 {[%clk 0:01:22.1]} 28... Qg5 {[%clk 0:01:33.8]} 29. Qf3
{[%clk 0:01:14.2]} 29... Qd2 {[%clk 0:01:22.5]} 30. Qf2 {[%clk 0:01:13.8]} 30...
Qg5 {[%clk 0:01:22.5]} 31. Qf3 {[%clk 0:01:12.8]} 1/2-1/2

[Event "Early-Titled-Tuesday-Blitz-July-09-2024"]
[Site "Chess.com"]
[Date "2024.07.09"]
[Round "1"]
[White "Bkmzzzzz"]
[Black "forevery0ung"]
[Result "0-1"]
[WhiteElo "2423"]
[BlackElo "2773"]
[TimeControl "180+1"]
[EndTime "8:04:47 PDT"]
[Termination "forevery0ung won by checkmate"]

1. e4 {[%clk 0:03:00.9]} 1... c6 {[%clk 0:02:56.2]} 2. d4 {[%clk 0:02:58.2]}
2... d5 {[%clk 0:02:56.1]} 3. Nc3 {[%clk 0:02:58.7]} 3... g6 {[%clk 0:02:55.5]}
4. Nf3 {[%clk 0:02:53.1]} 4... Bg7 {[%clk 0:02:54.4]} 5. Be2 {[%clk 0:02:52.7]}
5... dxe4 {[%clk 0:02:54.1]} 6. Nxe4 {[%clk 0:02:51.7]} 6... Nd7 {[%clk
0:02:54.3]} 7. O-O {[%clk 0:02:50.9]} 7... Ngf6 {[%clk 0:02:54.6]} 8. Nxf6+
{[%clk 0:02:50.7]} 8... Nxf6 {[%clk 0:02:54.7]} 9. c3 {[%clk 0:02:51.4]} 9...
O-O {[%clk 0:02:54.9]} 10. Bg5 {[%clk 0:02:49.6]} 10... Qc7 {[%clk 0:02:53.8]}
11. Qd2 {[%clk 0:02:48.9]} 11... Ne4 {[%clk 0:02:52.8]} 12. Qe3 {[%clk
0:02:48.2]} 12... Nxg5 {[%clk 0:02:52.6]} 13. Nxg5 {[%clk 0:02:48.6]} 13... Re8
{[%clk 0:02:48.5]} 14. Bc4 {[%clk 0:02:48.2]} 14... e6 {[%clk 0:02:48.1]} 15.
Qh3 {[%clk 0:02:45.1]} 15... h6 {[%clk 0:02:47.3]} 16. Ne4 {[%clk 0:02:45.8]}
16... e5 {[%clk 0:02:45]} 17. Qg3 {[%clk 0:02:43.4]} 17... Bf5 {[%clk
0:02:42.3]} 18. Rfe1 {[%clk 0:02:39.6]} 18... Rad8 {[%clk 0:02:32.7]} 19. dxe5
{[%clk 0:02:33.3]} 19... Rxe5 {[%clk 0:02:33.6]} 20. Qh4 {[%clk 0:02:27]} 20...
Rde8 {[%clk 0:02:25.3]} 21. f3 {[%clk 0:02:27.2]} 21... g5 {[%clk 0:02:18.3]}
22. Qf2 {[%clk 0:02:19.5]} 22... Bxe4 {[%clk 0:02:07.2]} 23. fxe4 {[%clk
0:02:20.4]} 23... Rxe4 {[%clk 0:02:07.9]} 24. Rxe4 {[%clk 0:02:18.5]} 24... Rxe4
{[%clk 0:02:08.8]} 25. Bb3 {[%clk 0:02:15.9]} 25... Be5 {[%clk 0:02:00]} 26. g3
{[%clk 0:02:06.9]} 26... Kg7 {[%clk 0:01:54.6]} 27. Rf1 {[%clk 0:02:04.9]} 27...
f6 {[%clk 0:01:40.9]} 28. Rd1 {[%clk 0:02:05.1]} 28... Bd6 {[%clk 0:01:11.8]}
29. Qf5 {[%clk 0:02:02.2]} 29... Re5 {[%clk 0:01:10.8]} 30. Qd3 {[%clk
0:02:02.1]} 30... Bc5+ {[%clk 0:01:10.5]} 31. Kg2 {[%clk 0:02:02.7]} 31... Qe7
{[%clk 0:01:10.4]} 32. Qc4 {[%clk 0:01:54.3]} 32... Re2+ {[%clk 0:01:06.5]} 33.
Kh3 {[%clk 0:01:55]} 33... Qe8 {[%clk 0:00:57]} 34. Qxc5 {[%clk 0:01:43.6]}
34... Qh5# {[%clk 0:00:55.6]} 0-1

[Event "Early-Titled-Tuesday-Blitz-July-09-2024"]
[Site "Chess.com"]
[Date "2024.07.09"]
[Round "1"]
[White "anderson2361"]
[Black "ninguno46"]
[Result "0-1"]
[WhiteElo "1936"]
[BlackElo "2546"]
[TimeControl "180+1"]
[EndTime "8:04:47 PDT"]
[Termination "ninguno46 won by resignation"]

1. c4 {[%clk 0:02:58.7]} 1... g6 {[%clk 0:02:58.6]} 2. Nf3 {[%clk 0:02:56.4]}
2... Bg7 {[%clk 0:02:59]} 3. g3 {[%clk 0:02:54.8]} 3... d6 {[%clk 0:02:58.6]} 4.
d4 {[%clk 0:02:53.5]} 4... Nf6 {[%clk 0:02:58.6]} 5. Bg2 {[%clk 0:02:52.7]} 5...
O-O {[%clk 0:02:59.1]} 6. O-O {[%clk 0:02:52.8]} 6... Nbd7 {[%clk 0:02:59.7]} 7.
Nc3 {[%clk 0:02:52]} 7... e5 {[%clk 0:02:59.5]} 8. e4 {[%clk 0:02:52.5]} 8... c6
{[%clk 0:02:58.9]} 9. Re1 {[%clk 0:02:48.3]} 9... Qa5 {[%clk 0:02:58.1]} 10. h3
{[%clk 0:02:46.4]} 10... b5 {[%clk 0:02:57.2]} 11. cxb5 {[%clk 0:02:34.4]} 11...
cxb5 {[%clk 0:02:56.7]} 12. dxe5 {[%clk 0:02:33.2]} 12... dxe5 {[%clk
0:02:56.2]} 13. Be3 {[%clk 0:02:26.4]} 13... Bb7 {[%clk 0:02:45.7]} 14. Nd2
{[%clk 0:02:17.5]} 14... a6 {[%clk 0:02:37]} 15. Rc1 {[%clk 0:02:14.1]} 15...
Rac8 {[%clk 0:02:26.1]} 16. b3 {[%clk 0:02:12.5]} 16... Rxc3 {[%clk 0:02:24.3]}
17. b4 {[%clk 0:02:04.6]} 17... Qxb4 {[%clk 0:02:22.4]} 18. a3 {[%clk
0:02:01.6]} 18... Rxc1 {[%clk 0:02:21.2]} 19. Qxc1 {[%clk 0:02:00.9]} 19... Qa5
{[%clk 0:02:14]} 20. Nb3 {[%clk 0:01:58.5]} 20... Qa4 {[%clk 0:02:10.5]} 21. Rd1
{[%clk 0:01:53.7]} 21... Rc8 {[%clk 0:02:08.8]} 22. Qb2 {[%clk 0:01:52.7]} 22...
Bf8 {[%clk 0:02:06.4]} 23. g4 {[%clk 0:01:48.8]} 23... Qxa3 {[%clk 0:02:03.9]}
24. Qb1 {[%clk 0:01:48.3]} 24... h6 {[%clk 0:01:58]} 25. h4 {[%clk 0:01:42.1]}
25... Qe7 {[%clk 0:01:55.5]} 26. g5 {[%clk 0:01:40]} 26... Ng4 {[%clk
0:01:55.5]} 27. Bc1 {[%clk 0:01:33.1]} 27... Nc5 {[%clk 0:01:43.3]} 28. Bh3
{[%clk 0:01:07.8]} 28... h5 {[%clk 0:01:38.3]} 29. Nd2 {[%clk 0:01:03.1]} 29...
Ne6 {[%clk 0:01:35.1]} 30. f3 {[%clk 0:01:01.9]} 30... Qc5+ {[%clk 0:01:33.6]}
31. Kh1 {[%clk 0:00:59.2]} 31... Nf2+ {[%clk 0:01:32.6]} 0-1

[Event "Early-Titled-Tuesday-Blitz-July-09-2024"]
[Site "Chess.com"]
[Date "2024.07.09"]
[Round "1"]
[White "tusplingher"]
[Black "j_coca"]
[Result "1-0"]
[WhiteElo "2689"]
[BlackElo "2375"]
[TimeControl "180+1"]
[EndTime "8:04:59 PDT"]
[Termination "tusplingher won by resignation"]

1. c4 {[%clk 0:03:00.9]} 1... g6 {[%clk 0:02:54.6]} 2. g3 {[%clk 0:03:00.8]}
2... Bg7 {[%clk 0:02:55]} 3. Bg2 {[%clk 0:03:00.3]} 3... f5 {[%clk 0:02:55.6]}
4. Nc3 {[%clk 0:03:00.2]} 4... Nf6 {[%clk 0:02:56.1]} 5. d4 {[%clk 0:03:00.1]}
5... O-O {[%clk 0:02:56.7]} 6. Nf3 {[%clk 0:02:59.7]} 6... d6 {[%clk 0:02:57.6]}
7. O-O {[%clk 0:02:59.5]} 7... Nc6 {[%clk 0:02:58]} 8. Re1 {[%clk 0:02:56.6]}
8... e5 {[%clk 0:02:58.3]} 9. dxe5 {[%clk 0:02:56.4]} 9... dxe5 {[%clk
0:02:59.2]} 10. Nd5 {[%clk 0:02:56.5]} 10... Be6 {[%clk 0:02:58.7]} 11. Ng5
{[%clk 0:02:55]} 11... Bxd5 {[%clk 0:02:57.3]} 12. cxd5 {[%clk 0:02:54.9]} 12...
Nd4 {[%clk 0:02:44.4]} 13. e3 {[%clk 0:02:54.3]} 13... h6 {[%clk 0:02:44.9]} 14.
exd4 {[%clk 0:02:54]} 14... hxg5 {[%clk 0:02:45.3]} 15. dxe5 {[%clk 0:02:54.6]}
15... Ne4 {[%clk 0:02:45.7]} 16. Bxe4 {[%clk 0:02:43.7]} 16... fxe4 {[%clk
0:02:46.6]} 17. Rxe4 {[%clk 0:02:43.1]} 17... Qe7 {[%clk 0:02:21.2]} 18. Be3
{[%clk 0:02:36.5]} 18... Rae8 {[%clk 0:02:11.9]} 19. Qg4 {[%clk 0:02:24]} 19...
Bxe5 {[%clk 0:02:09.3]} 20. Bxg5 {[%clk 0:02:20.7]} 20... Qf7 {[%clk 0:02:03.9]}
21. Rf1 {[%clk 0:02:16.3]} 21... Bxb2 {[%clk 0:02:02.6]} 22. Rb4 {[%clk
0:01:58.8]} 22... Ba3 {[%clk 0:01:46]} 23. Rb3 {[%clk 0:01:56.6]} 23... Bc5
{[%clk 0:01:45.4]} 24. Bf4 {[%clk 0:01:41.6]} 24... Kg7 {[%clk 0:01:40.5]} 25.
Rxb7 {[%clk 0:01:37.2]} 25... Qxd5 {[%clk 0:01:35.8]} 26. Rxc7+ {[%clk
0:01:33.9]} 26... Rf7 {[%clk 0:01:31.2]} 27. Rxf7+ {[%clk 0:01:30.5]} 27... Kxf7
{[%clk 0:01:29.4]} 28. Rd1 {[%clk 0:01:24.6]} 28... Qxa2 {[%clk 0:01:24]} 29.
Rd7+ {[%clk 0:01:16.4]} 29... Re7 {[%clk 0:01:24.4]} 30. Rxe7+ {[%clk
0:01:16.2]} 30... Kxe7 {[%clk 0:01:25.3]} 31. Qg5+ {[%clk 0:01:14.2]} 31... Kf7
{[%clk 0:01:20.3]} 32. Qxc5 {[%clk 0:01:13]} 1-0

[Event "Early-Titled-Tuesday-Blitz-July-09-2024"]
[Site "Chess.com"]
[Date "2024.07.09"]
[Round "1"]
[White "GMT4114"]
[Black "Hananmo"]
[Result "0-1"]
[WhiteElo "1935"]
[BlackElo "2542"]
[TimeControl "180+1"]
[EndTime "8:05:03 PDT"]
[Termination "Hananmo won by checkmate"]

1. e4 {[%clk 0:02:56.4]} 1... c5 {[%clk 0:02:59.3]} 2. Nc3 {[%clk 0:02:56]} 2...
a6 {[%clk 0:02:56.8]} 3. Nge2 {[%clk 0:02:53.5]} 3... b5 {[%clk 0:02:56]} 4. g3
{[%clk 0:02:54.1]} 4... Bb7 {[%clk 0:02:56.2]} 5. Bg2 {[%clk 0:02:54.4]} 5... e6
{[%clk 0:02:55.4]} 6. d4 {[%clk 0:02:52.8]} 6... cxd4 {[%clk 0:02:54.3]} 7. Nxd4
{[%clk 0:02:53.7]} 7... d6 {[%clk 0:02:51.3]} 8. O-O {[%clk 0:02:48.6]} 8... Nd7
{[%clk 0:02:49.8]} 9. Re1 {[%clk 0:02:38.3]} 9... Be7 {[%clk 0:02:47.1]} 10. Qg4
{[%clk 0:02:04.3]} 10... Ngf6 {[%clk 0:02:21.2]} 11. Qxg7 {[%clk 0:01:55.9]}
11... Rg8 {[%clk 0:02:21.7]} 12. Qh6 {[%clk 0:01:56.5]} 12... Qb6 {[%clk
0:02:22.3]} 13. Qd2 {[%clk 0:01:46.9]} 13... Ne5 {[%clk 0:02:13.1]} 14. b3
{[%clk 0:01:32.5]} 14... h5 {[%clk 0:02:01.7]} 15. h3 {[%clk 0:01:27.4]} 15...
h4 {[%clk 0:01:56.8]} 16. g4 {[%clk 0:01:27.4]} 16... O-O-O {[%clk 0:01:42.4]}
17. Nd1 {[%clk 0:00:56.5]} 17... Nfxg4 {[%clk 0:01:36.2]} 18. hxg4 {[%clk
0:00:55.3]} 18... Rxg4 {[%clk 0:01:37.1]} 19. Kh2 {[%clk 0:00:50.3]} 19... Rdg8
{[%clk 0:01:29.7]} 20. Bh3 {[%clk 0:00:47.7]} 20... Qxd4 {[%clk 0:01:18.9]} 21.
Qxd4 {[%clk 0:00:48]} 21... Nf3+ {[%clk 0:01:19]} 22. Kh1 {[%clk 0:00:47.3]}
22... Rg1+ {[%clk 0:01:18.8]} 23. Rxg1 {[%clk 0:00:45.3]} 23... Rxg1# {[%clk
0:01:19.7]} 0-1

[Event "Early-Titled-Tuesday-Blitz-July-09-2024"]
[Site "Chess.com"]
[Date "2024.07.09"]
[Round "1"]
[White "GilbertoHernandezAmura"]
[Black "kleinebeer98"]
[Result "0-1"]
[WhiteElo "2508"]
[BlackElo "2941"]
[TimeControl "180+1"]
[EndTime "8:05:07 PDT"]
[Termination "kleinebeer98 won by resignation"]

1. e4 {[%clk 0:03:00.9]} 1... e5 {[%clk 0:02:59.3]} 2. Nf3 {[%clk 0:03:00]} 2...
Nc6 {[%clk 0:02:59.6]} 3. Bc4 {[%clk 0:03:00.3]} 3... Nf6 {[%clk 0:02:59.3]} 4.
d3 {[%clk 0:03:00.8]} 4... h6 {[%clk 0:02:59.3]} 5. c3 {[%clk 0:02:59.8]} 5...
d6 {[%clk 0:02:59.4]} 6. a4 {[%clk 0:02:58.8]} 6... g5 {[%clk 0:02:57.9]} 7. Be3
{[%clk 0:02:49.7]} 7... Qe7 {[%clk 0:02:55]} 8. b4 {[%clk 0:02:47.8]} 8... Be6
{[%clk 0:02:54.8]} 9. Nbd2 {[%clk 0:02:41.6]} 9... Bg7 {[%clk 0:02:52.6]} 10.
Qb3 {[%clk 0:02:38.5]} 10... O-O {[%clk 0:02:49.7]} 11. Bxe6 {[%clk 0:02:34.6]}
11... fxe6 {[%clk 0:02:50.6]} 12. b5 {[%clk 0:02:33.1]} 12... Na5 {[%clk
0:02:50.6]} 13. Qb4 {[%clk 0:02:32.4]} 13... b6 {[%clk 0:02:51.3]} 14. Nc4
{[%clk 0:02:30.8]} 14... Nxc4 {[%clk 0:02:48.9]} 15. Qxc4 {[%clk 0:02:30.6]}
15... d5 {[%clk 0:02:49.5]} 16. Qb3 {[%clk 0:02:22.1]} 16... dxe4 {[%clk
0:02:42.8]} 17. Nxe5 {[%clk 0:02:22.5]} 17... Nd5 {[%clk 0:02:28.3]} 18. d4
{[%clk 0:01:35.3]} 18... Bxe5 {[%clk 0:02:24.7]} 19. dxe5 {[%clk 0:01:35.6]}
19... Nxe3 {[%clk 0:02:20.7]} 20. fxe3 {[%clk 0:01:36.5]} 20... Rf5 {[%clk
0:02:06.5]} 21. Rf1 {[%clk 0:01:25.9]} 21... Rxe5 {[%clk 0:02:00.6]} 22. Kf2
{[%clk 0:01:20.7]} 22... Qc5 {[%clk 0:01:55.7]} 23. g4 {[%clk 0:01:15]} 23...
Rf8+ {[%clk 0:01:54.2]} 24. Ke2 {[%clk 0:01:15.5]} 24... Rf3 {[%clk 0:01:54.8]}
25. c4 {[%clk 0:01:13.1]} 25... h5 {[%clk 0:01:48.6]} 26. h3 {[%clk 0:00:37.4]}
26... Rxh3 {[%clk 0:01:38.4]} 27. Rf2 {[%clk 0:00:37.9]} 27... hxg4 {[%clk
0:01:35.6]} 28. Rg1 {[%clk 0:00:38.6]} 28... Rf5 {[%clk 0:01:31.4]} 29. Rxg4
{[%clk 0:00:36.7]} 29... Rxf2+ {[%clk 0:01:32.1]} 30. Kxf2 {[%clk 0:00:37]}
30... Qf5+ {[%clk 0:01:32.9]} 0-1

[Event "Early-Titled-Tuesday-Blitz-July-09-2024"]
[Site "Chess.com"]
[Date "2024.07.09"]
[Round "1"]
[White "Matols"]
[Black "WanderingPuppet"]
[Result "1/2-1/2"]
[WhiteElo "2354"]
[BlackElo "2652"]
[TimeControl "180+1"]
[EndTime "8:05:07 PDT"]
[Termination "Game drawn by repetition"]

1. d4 {[%clk 0:02:59.8]} 1... Nf6 {[%clk 0:02:59.5]} 2. c4 {[%clk 0:03:00]} 2...
g6 {[%clk 0:02:59.6]} 3. g3 {[%clk 0:02:59.7]} 3... Bg7 {[%clk 0:02:59.8]} 4.
Bg2 {[%clk 0:03:00.3]} 4... O-O {[%clk 0:02:59.9]} 5. Nc3 {[%clk 0:03:00.9]}
5... d6 {[%clk 0:03:00.2]} 6. Nf3 {[%clk 0:03:01.4]} 6... c6 {[%clk 0:02:59]} 7.
O-O {[%clk 0:03:01.7]} 7... Bf5 {[%clk 0:02:59.2]} 8. Ne1 {[%clk 0:02:59.5]}
8... e5 {[%clk 0:02:58.6]} 9. e4 {[%clk 0:02:56.7]} 9... Bg4 {[%clk 0:02:44]}
10. f3 {[%clk 0:02:56.1]} 10... exd4 {[%clk 0:02:42.5]} 11. Qxd4 {[%clk
0:02:40.8]} 11... Be6 {[%clk 0:02:41]} 12. Nc2 {[%clk 0:02:05.1]} 12... d5
{[%clk 0:02:39.6]} 13. cxd5 {[%clk 0:01:58.6]} 13... Nxd5 {[%clk 0:02:36.8]} 14.
Qd2 {[%clk 0:01:49.6]} 14... Nxc3 {[%clk 0:02:29.5]} 15. bxc3 {[%clk 0:01:48.9]}
15... Nd7 {[%clk 0:02:23.9]} 16. Nd4 {[%clk 0:01:45.5]} 16... Bc4 {[%clk
0:02:09.4]} 17. Rd1 {[%clk 0:01:43.2]} 17... Ne5 {[%clk 0:02:09]} 18. Ba3 {[%clk
0:01:40.6]} 18... Re8 {[%clk 0:02:07.2]} 19. Rab1 {[%clk 0:01:37.9]} 19... Qa5
{[%clk 0:02:04.6]} 20. Bb4 {[%clk 0:01:24.9]} 20... Qxa2 {[%clk 0:01:59.8]} 21.
Qe3 {[%clk 0:01:13.5]} 21... Qa6 {[%clk 0:01:41.1]} 22. Ra1 {[%clk 0:00:59.4]}
22... Qb6 {[%clk 0:01:40.1]} 23. Ba5 {[%clk 0:00:59.6]} 23... Qc5 {[%clk
0:01:21.5]} 24. Bb4 {[%clk 0:00:59.1]} 24... Qb6 {[%clk 0:01:12]} 25. Ba5 {[%clk
0:00:58.9]} 25... Qc5 {[%clk 0:01:01.6]} 26. Bb4 {[%clk 0:00:58.7]} 26... Qb6
{[%clk 0:01:01.5]} 1/2-1/2